bitfinex-derivatives/quotes_SOLF0:USTF0_20250206
["timestamp","ask_amount","ask_price","bid_price","bid_amount"]
[1738876624550,21.01339346,191.91,191.74,3.4142]
[1738876624551,5.2129,191.83,191.74,3.4142]
[1738876624751,0.03779383,191.84,191.74,3.4142]
[1738876625049,5.2126,191.83,191.77,5.2142]
[1738876625249,0.03779383,191.84,191.67,21.10406097]
[1738876625250,21.01339346,191.81,191.67,21.10406097]
[1738876625753,0.03902234,191.76,191.67,21.10406097]
[1738876626150,5.2153,191.74,191.67,26.32086097]
[1738876626449,0.03902234,191.76,191.65,7.03468699]
[1738876626651,3.1211,191.8,191.65,7.03468699]
[1738876626857,0.03551872,191.72,191.65,7.03468699]
[1738876628259,5.2162,191.7,191.65,7.03468699]
[1738876628454,25.07339346,191.71,191.64,21.10406097]
[1738876628858,5.2173,191.66,191.64,21.10406097]
[1738876629257,0.03962638,191.67,191.63,56.27749593]
[1738876629451,21.01339346,191.65,191.55,1.5574]
[1738876629955,0.03662822,191.62,191.55,1.5574]
[1738876630157,0.03662822,191.62,191.53,5.4414]
[1738876630360,0.03662822,191.62,191.54,5.2204]
[1738876630661,0.03662822,191.62,191.53,0.2208]
[1738876630855,5.219,191.6,191.53,5.2206]
[1738876631163,5.219,191.6,191.5,1.5574]
[1738876631164,0.03662822,191.62,191.5,1.5574]
[1738876631461,5.2189,191.6,191.53,5.2208]
[1738876631662,0.03939597,191.58,191.5,1.5574]
[1738876632062,21.01339346,191.68,191.51,21.01339346]
[1738876632262,62.72591737,191.73,191.54,21.01339346]
[1738876632263,4.06,191.69,191.54,21.01339346]
[1738876632658,5.2176,191.65,191.55,5.2201]
[1738876632861,21.01339346,191.68,191.5,22.57079346]
[1738876633360,0.03997479,191.61,191.57,0.03831749]
[1738876633565,21.05336825,191.61,191.43,21.01339346]
[1738876633764,21.01339346,191.58,191.43,21.01339346]
[1738876633962,25.11339346,191.58,191.43,21.01339346]
[1738876634861,0.03453478,191.52,191.43,21.01339346]
[1738876635664,0.03453478,191.52,191.45,5.2228]
[1738876635865,0.03453478,191.52,191.43,21.01339346]
[1738876636262,0.03453478,191.52,191.5,5.2215]
[1738876637366,0.03453478,191.52,191.48,5.222]
[1738876637559,0.03453478,191.52,191.44,1.5171]
[1738876638168,21.01339346,191.5,191.33,21.01339346]
[1738876638367,21.01339346,191.5,191.34,3.0461]
[1738876638569,5.2224,191.47,191.38,5.2247]
[1738876638870,0.0371722,191.44,191.36,21.01339346]
[1738876639069,0.0371722,191.44,191.41,5.2239]
[1738876639567,0.0371722,191.44,191.36,21.01339346]
[1738876639770,0.0371722,191.44,191.34,3.0461]
[1738876639771,1.5285,191.51,191.39,21.01339346]
[1738876639969,4.3303,191.56,191.42,21.01339346]
[1738876640869,4.1,191.56,191.42,21.01339346]
[1738876641067,0.03459224,191.51,191.47,0.03464103]
[1738876641259,4.1,191.59,191.47,0.03464103]
[1738876641462,4.1,191.59,191.45,21.01339346]
[1738876641463,21.01339346,191.61,191.45,21.01339346]
[1738876641666,1.6155,191.63,191.48,21.01339346]
[1738876641866,5.2192,191.59,191.53,5.2207]
[1738876642062,1.6155,191.63,191.48,21.01339346]
[1738876642264,1.6155,191.63,191.45,21.01339346]
[1738876642265,21.01339346,191.61,191.45,21.01339346]
[1738876642465,5.2195,191.58,191.44,1.6347]
[1738876642667,0.03826025,191.57,191.54,0.03306126]
[1738876642862,36.05609104,191.63,191.46,34.44059104]
[1738876643171,0.03874935,191.57,191.54,0.03553188]
[1738876644964,0.03874935,191.57,191.55,5.2203]
[1738876645170,4.1,191.67,191.54,0.03553188]
[1738876645372,1.5855,191.68,191.54,0.03553188]
[1738876645567,1.5855,191.68,191.55,34.44059104]
[1738876646168,5.2167,191.69,191.55,34.44059104]
[1738876646471,0.03979354,191.63,191.6,0.03815]
[1738876646770,0.03979354,191.63,191.58,34.44059104]
[1738876646771,62.72591737,191.73,191.61,34.44059104]
[1738876646972,5.6855,191.74,191.58,34.44059104]
[1738876647371,5.6855,191.74,191.64,5.2176]
[1738876647971,0.03657243,191.71,191.67,0.03672595]
[1738876649270,0.03657243,191.71,191.67,5.25372595]
[1738876649463,0.03657243,191.71,191.67,0.03672595]
[1738876649771,0.03657243,191.71,191.7,5.2162]
[1738876650670,4.1,191.83,191.67,34.47731699]
[1738876650870,5.2141,191.78,191.67,34.47731699]
[1738876651171,4.1,191.83,191.67,34.44059104]
[1738876651870,0.03839188,191.77,191.73,0.0346069]
[1738876652271,34.44059104,191.85,191.7,34.44059104]
[1738876652571,0.0338324,191.77,191.73,0.03307588]
[1738876652967,34.44059104,191.85,191.74,5.2149]
[1738876653174,34.44059104,191.85,191.68,1.5747]
[1738876653175,0.0341687,191.77,191.73,0.0374386]
[1738876653372,34.44059104,191.79,191.68,1.5747]
[1738876653571,5.2146,191.76,191.69,5.2164]
[1738876653774,0.03676388,191.77,191.73,0.03702384]
[1738876654267,5.2146,191.76,191.73,0.03702384]
[1738876655480,5.25106388,191.77,191.73,0.03702384]
[1738876656673,0.03676388,191.77,191.73,0.03702384]
[1738876657176,5.2127,191.83,191.78,5.214]
[1738876657473,7.3258,191.86,191.73,34.44059104]
[1738876657675,5.213,191.82,191.77,5.2142]
[1738876658367,5.24699291,191.81,191.78,0.03759118]
[1738876658976,0.03379291,191.81,191.78,0.03759118]
[1738876659275,5.2137,191.79,191.78,9.118e-05]
[1738876659972,39.65429104,191.79,191.78,9.118e-05]
[1738876660176,39.65429104,191.79,191.61,38.52059104]
[1738876660177,34.44059104,191.79,191.62,1.6342]
[1738876660377,34.44059104,191.74,191.62,6.8525]
[1738876660671,1.5287,191.73,191.62,1.6342]
[1738876660877,1.5287,191.73,191.64,5.2176]
[1738876661382,5.2167,191.68,191.67,0.03872024]
[1738876661580,0.03610741,191.7,191.67,0.03872024]
[1738876662172,0.03610741,191.7,191.67,5.25562024]
[1738876663978,0.03610741,191.7,191.67,0.03872024]
[1738876665281,5.2167,191.68,191.67,0.03872024]
[1738876665480,5.2167,191.68,191.67,2.024e-05]
[1738876665681,39.65729104,191.68,191.67,2.024e-05]
[1738876666282,5.2167,191.68,191.67,2.024e-05]
[1738876672894,0.03610741,191.7,191.67,2.024e-05]
[1738876673086,5.7358,191.79,191.67,2.024e-05]
[1738876673390,5.7358,191.79,191.7,5.216]
[1738876673592,5.7358,191.79,191.63,3.1468]
[1738876673992,28.19725333,191.78,191.63,3.1468]
[1738876674292,0.03667581,191.73,191.69,0.0333352]
[1738876674896,0.03667581,191.73,191.72,5.2156]
[1738876675090,0.03667581,191.73,191.69,0.0333352]
[1738876675791,5.25207581,191.73,191.69,5.2497352]
[1738876676193,5.25207581,191.73,191.69,0.0333352]
[1738876677690,5.25207581,191.73,191.72,5.2156]
[1738876677691,0.03667581,191.73,191.72,5.2156]
[1738876677896,28.60715333,191.85,191.69,0.0333352]
[1738876677897,21.17334004,191.84,191.69,0.0333352]
[1738876678392,5.2143,191.77,191.71,5.2157]
[1738876678898,5.2143,191.77,191.68,21.17334004]
[1738876679097,0.0347961,191.76,191.72,0.03846914]
[1738876679497,0.0347961,191.76,191.72,5.25386914]
[1738876679797,0.0347961,191.76,191.72,0.03846914]
[1738876680092,5.214,191.78,191.72,0.03846914]
[1738876680093,28.19725333,191.81,191.72,0.03846914]
[1738876680292,28.19725333,191.81,191.72,1.60496914]
[1738876680491,28.19725333,191.81,191.72,3.17536914]
[1738876680688,28.19725333,191.81,191.74,21.17334004]
[1738876681292,0.03499709,191.79,191.78,5.214]
[1738876681795,0.03499709,191.79,191.77,0.03452831]
[1738876682097,0.03499709,191.79,191.77,5.24882831]
[1738876682295,28.19725333,191.81,191.77,0.03452831]
[1738876682598,5.2116,191.87,191.82,5.2127]
[1738876683096,5.2116,191.87,191.77,21.17334004]
[1738876683393,7.04931333,191.88,191.83,5.2126]
[1738876683593,0.03533542,191.84,191.83,5.2126]
[1738876683794,0.03533542,191.84,191.81,5.2129]
[1738876684092,0.03533542,191.84,191.8,0.03971895]
[1738876684294,0.03533542,191.84,191.83,5.2126]
[1738876684498,7.04931333,191.88,191.8,21.21305899]
[1738876684699,7.04931333,191.88,191.83,21.17334004]
[1738876685298,55.90272001,191.89,191.86,21.17334004]
[1738876685494,55.90272001,191.89,191.88,5.2113]
[1738876685800,53.42841995,191.89,191.88,5.2113]
[1738876686196,0.03939994,191.89,191.88,5.2113]
[1738876686497,0.03939994,191.89,191.86,5.24653524]
[1738876686699,0.03939994,191.89,191.86,0.03493524]
[1738876688302,0.03939994,191.89,191.88,5.2113]
[1738876688503,0.03939994,191.89,191.86,0.03493524]
[1738876688908,0.03939994,191.89,191.87,5.2113]
[1738876689301,0.03939994,191.89,191.86,0.03493524]
[1738876691600,5.2115,191.87,191.86,0.03493524]
[1738876692707,5.2131,191.82,191.77,5.214]
[1738876693210,3.1388,191.86,191.74,3.1249]
[1738876693505,5.2129,191.83,191.74,3.1249]
[1738876693706,3.1388,191.86,191.74,3.1249]
[1738876693914,5.25037382,191.8,191.77,0.03332331]
[1738876694504,0.03667382,191.8,191.77,0.03332331]
[1738876695406,5.214,191.78,191.77,0.03332331]
[1738876695808,5.214,191.78,191.72,5.2154]
[1738876695809,0.03667382,191.8,191.64,21.17334004]
[1738876696006,5.2154,191.73,191.68,5.2165]
[1738876696202,21.17334004,191.78,191.61,21.17334004]
[1738876696397,3.2656,191.77,191.61,21.17334004]
[1738876696701,5.2159,191.72,191.66,5.217]
[1738876696901,5.2159,191.72,191.61,21.17334004]
[1738876697108,0.03342301,191.71,191.67,0.03697551]
[1738876697808,0.03342301,191.71,191.67,5.25387551]
[1738876698304,0.03342301,191.71,191.69,5.2164]
[1738876698714,0.03342301,191.71,191.67,0.03697551]
[1738876700008,0.03342301,191.71,191.66,5.2172]
[1738876700009,5.24932301,191.71,191.66,5.2172]
[1738876700205,21.17334004,191.68,191.51,3.1876]
[1738876700401,21.17334004,191.68,191.51,3.481]
[1738876700609,21.17334004,191.74,191.51,3.481]
[1738876700910,5.2168,191.68,191.57,21.17334004]
[1738876701110,21.17334004,191.74,191.57,21.17334004]
[1738876701302,0.03587545,191.64,191.61,5.25674927]
[1738876701509,3.2656,191.77,191.61,0.03824927]
[1738876701709,3.2656,191.77,191.63,21.17334004]
[1738876702604,3.2656,191.77,191.62,0.2934]
[1738876702805,0.03909762,191.72,191.62,0.2934]
[1738876703110,0.03909762,191.72,191.68,0.03834441]
[1738876704110,0.03909762,191.72,191.69,5.2163]
[1738876705409,0.03909762,191.72,191.68,0.03834441]
[1738876707614,5.25489762,191.72,191.68,0.03834441]
[1738876707812,0.03909762,191.72,191.68,0.03834441]
[1738876708713,5.2164,191.69,191.68,0.03834441]
[1738876708912,1.6265,191.71,191.58,1.5698]
[1738876709716,5.2174,191.66,191.59,5.219]
[1738876710114,0.03328019,191.64,191.61,0.0342453]
[1738876711906,0.03328019,191.64,191.62,5.2183]
[1738876712914,0.03328019,191.64,191.61,5.2528453]
[1738876713121,0.03328019,191.64,191.61,0.0342453]
[1738876713514,0.03328019,191.64,191.61,5.2528453]
[1738876714218,0.03328019,191.64,191.61,0.0342453]
[1738876714715,5.25108019,191.64,191.61,0.0342453]
[1738876714919,0.03328019,191.64,191.61,0.0342453]
[1738876715924,0.03328019,191.64,191.52,3.267]
[1738876716113,21.17334004,191.66,191.52,1.6544]
[1738876716317,5.2196,191.58,191.53,5.2208]
[1738876716515,21.17334004,191.63,191.53,5.2208]
[1738876716714,21.17334004,191.63,191.46,1.5133]
[1738876716915,0.03689071,191.6,191.56,0.03825625]
[1738876717225,0.03689071,191.6,191.46,1.6544]
[1738876717226,21.21023075,191.6,191.46,1.6544]
[1738876717418,5.2202,191.56,191.49,5.2217]
[1738876717713,1.5676,191.59,191.46,1.6544]
[1738876718621,0.03444773,191.54,191.51,0.03930717]
[1738876721320,0.03444773,191.54,191.51,5.26040717]
[1738876721519,0.03444773,191.54,191.51,0.03930717]
[1738876722717,5.2211,191.52,191.51,0.03930717]
[1738876724321,0.03444773,191.54,191.51,0.03930717]
[1738876725419,0.03444773,191.54,191.52,5.2211]
[1738876727124,0.03444773,191.54,191.53,5.2208]
[1738876727520,5.2191,191.6,191.56,5.2198]
[1738876728418,5.2191,191.6,191.49,21.17334004]
[1738876728419,5.2192,191.59,191.54,5.2203]
[1738876728617,5.2192,191.59,191.56,0.03352539]
[1738876729016,0.04014882,191.6,191.56,0.03352539]
[1738876729220,5.2197,191.57,191.56,0.03352539]
[1738876730021,5.2192,191.59,191.56,0.03352539]
[1738876730230,0.04014882,191.6,191.56,0.03352539]
[1738876731225,1.5614,191.7,191.58,21.17334004]
[1738876731621,5.2172,191.67,191.58,21.17334004]
[1738876731819,1.5154,191.71,191.58,21.17334004]
[1738876732027,1.5154,191.71,191.63,5.2179]
[1738876732330,0.03695553,191.65,191.63,5.2179]
[1738876733217,0.03695553,191.65,191.62,5.25404163]
[1738876733415,0.03695553,191.65,191.62,0.03574163]
[1738876733620,5.218,191.64,191.62,0.03574163]
[1738876733827,0.03695553,191.65,191.62,0.03574163]
[1738876734128,5.2178,191.64,191.62,0.03574163]
[1738876736126,21.17334004,191.63,191.46,21.17334004]
[1738876737127,21.17334004,191.66,191.49,21.17334004]
[1738876737322,0.03821192,191.56,191.53,0.03873217]
[1738876737521,24.75962102,191.77,191.57,5.2197]
[1738876737522,5.2178,191.64,191.57,5.2197]
[1738876737721,5.2178,191.64,191.55,21.17334004]
[1738876737722,21.17334004,191.72,191.55,21.17334004]
[1738876737930,21.17334004,191.66,191.53,4.6451]
[1738876738228,21.17334004,191.66,191.53,3.0704]
[1738876738531,5.2183,191.63,191.53,1.5477]
[1738876738730,0.0390616,191.61,191.58,0.03741533]
[1738876739128,5.2191,191.6,191.58,1.533e-05]
[1738876742722,5.2192,191.59,191.58,1.533e-05]
[1738876747335,0.0390616,191.61,191.58,1.533e-05]
[1738876747538,0.0390616,191.61,191.58,5.21941533]
[1738876747830,0.0390616,191.61,191.58,1.533e-05]
[1738876748032,7.19265028,191.63,191.58,1.533e-05]
[1738876748628,12.41075028,191.63,191.58,1.533e-05]
[1738876748829,7.19265028,191.63,191.58,1.533e-05]
[1738876749030,4.67675028,191.63,191.59,21.17334004]
[1738876749231,21.40575219,191.64,191.59,21.17334004]
[1738876750126,21.40575219,191.64,191.6,5.2189]
[1738876750337,5.2181,191.63,191.58,1.533e-05]
[1738876750530,0.0399798,191.64,191.58,5.2192]
[1738876750831,5.2577798,191.64,191.59,0.0348162]
[1738876751424,0.0399798,191.64,191.59,0.0348162]
[1738876751830,0.0399798,191.64,191.59,21.20815624]
[1738876752026,0.0399798,191.64,191.63,5.2181]
[1738876752729,5.2162,191.7,191.65,5.2175]
[1738876752935,23.03135219,191.75,191.62,21.17334004]
[1738876753136,21.40575219,191.75,191.65,21.17334004]
[1738876753334,21.40575219,191.75,191.68,21.17334004]
[1738876753944,0.03366027,191.73,191.7,0.0357584]
[1738876754838,5.2159,191.71,191.7,0.0357584]
[1738876757143,5.2177,191.65,191.55,1.5739]
[1738876757439,1.609,191.7,191.55,1.5739]
[1738876757638,22.78234004,191.7,191.55,1.5739]
[1738876757838,21.17334004,191.67,191.55,1.5739]
[1738876758234,21.17334004,191.67,191.54,3.2772]
[1738876758235,21.17334004,191.67,191.54,1.6419]
[1738876758436,0.03501859,191.63,191.59,0.03785674]
[1738876758636,5.2186,191.62,191.59,0.03785674]
[1738876759038,0.03501859,191.63,191.59,0.03785674]
[1738876759238,5.2187,191.61,191.59,0.03785674]
[1738876761953,0.03501859,191.63,191.59,0.03785674]
[1738876762340,0.03501859,191.63,191.61,5.2184]
[1738876762542,0.03501859,191.63,191.6,21.17334004]
[1738876762949,23.05245219,191.72,191.6,21.17334004]
[1738876763140,5.2167,191.68,191.6,21.17334004]
[1738876763751,5.2173,191.66,191.6,21.17334004]
[1738876763954,23.05245219,191.72,191.6,21.17334004]
[1738876764159,0.04012248,191.66,191.62,0.03483837]
[1738876764455,0.04012248,191.66,191.63,5.2178]
[1738876764646,0.04012248,191.66,191.62,0.03483837]
[1738876764945,0.04012248,191.66,191.63,21.17334004]
[1738876765145,0.04012248,191.66,191.65,5.2175]
[1738876765850,1.6319,191.75,191.67,5.2168]
[1738876766254,5.2156,191.73,191.63,21.17334004]
[1738876766948,57.05066495,191.8,191.7,21.17334004]
[1738876767350,0.03597394,191.76,191.73,5.2151]
[1738876767554,0.03597394,191.76,191.73,0.03796451]
[1738876768055,0.03597394,191.76,191.61,21.17334004]
[1738876768545,21.17334004,191.78,191.61,21.17334004]
[1738876768745,21.17334004,191.75,191.63,5.2179]
[1738876768943,1.6474,191.74,191.63,5.2179]
[1738876769253,0.03885365,191.7,191.67,0.03546586]
[1738876771753,5.2167,191.68,191.67,0.03546586]
[1738876772448,0.03885365,191.7,191.67,0.03546586]
[1738876772645,5.25505365,191.7,191.67,0.03546586]
[1738876773044,5.2165,191.69,191.67,0.03546586]
[1738876773254,0.03885365,191.7,191.67,0.03546586]
[1738876773756,5.2166,191.69,191.67,0.03546586]
[1738876774055,0.03885365,191.7,191.67,0.03546586]
[1738876774251,0.03885365,191.7,191.67,21.2088059]
[1738876774455,5.365e-05,191.7,191.69,5.2164]
[1738876774658,1.6167,191.79,191.67,21.2088059]
[1738876774856,1.6167,191.79,191.64,21.17334004]
[1738876775056,1.6167,191.79,191.68,5.2167]
[1738876775557,5.2156,191.73,191.68,5.2167]
[1738876775856,0.03766473,191.75,191.72,3.247e-05]
[1738876776052,5.2151,191.74,191.65,21.17334004]
[1738876776454,1.6167,191.79,191.71,5.2159]
[1738876776654,1.6167,191.79,191.68,21.17334004]
[1738876777049,0.03745272,191.75,191.72,0.03530587]
[1738876777253,0.03745272,191.75,191.73,5.2151]
[1738876777656,0.03745272,191.75,191.72,0.03530587]
[1738876778660,5.2153,191.74,191.72,0.03530587]
[1738876778956,0.03745272,191.75,191.72,0.03530587]
[1738876779357,5.2154,191.73,191.72,0.03530587]
[1738876779559,0.03745272,191.75,191.72,0.03530587]
[1738876780853,0.03745272,191.75,191.66,5.217]
[1738876781059,21.17334004,191.78,191.66,5.217]
[1738876781858,21.17334004,191.78,191.61,22.73224004]
[1738876782159,5.2161,191.71,191.7,0.04017436]
[1738876782458,0.03919507,191.74,191.7,0.04017436]
[1738876782854,5.2156,191.73,191.7,0.04017436]
[1738876783654,5.25439507,191.74,191.7,0.04017436]
[1738876783850,5.25439507,191.74,191.61,21.17334004]
[1738876783851,0.03919507,191.74,191.61,21.17334004]
[1738876784052,21.17334004,191.78,191.61,21.17334004]
[1738876784259,5.2163,191.7,191.67,5.2169]
[1738876785162,5.25550759,191.7,191.67,5.25135692]
[1738876785958,5.2167,191.68,191.67,0.03445692]
[1738876786358,1.6012,191.69,191.58,22.78354004]
[1738876786558,5.2173,191.66,191.63,5.2181]
[1738876787258,1.6146,191.72,191.61,21.17334004]
[1738876787653,0.03340412,191.68,191.65,0.03923013]
[1738876787862,0.03340412,191.68,191.66,5.217]
[1738876788561,0.03340412,191.68,191.67,5.217]
[1738876788863,21.40575219,191.79,191.67,21.17334004]
[1738876789054,21.40575219,191.79,191.7,21.17334004]
[1738876789855,21.40575219,191.8,191.7,21.17334004]
[1738876790156,0.0355212,191.76,191.73,0.03771529]
[1738876791168,0.0355212,191.76,191.73,21.21105533]
[1738876791358,0.0355212,191.76,191.75,5.2148]
[1738876793265,5.2135,191.8,191.73,0.03771529]
[1738876793562,1.5259,191.83,191.73,0.03771529]
[1738876794562,5.2142,191.78,191.73,0.03771529]
[1738876794866,5.2142,191.78,191.73,5.25291529]
[1738876795965,0.03826397,191.8,191.73,0.03771529]
[1738876796166,0.03826397,191.8,191.73,21.21105533]
[1738876798068,5.25186397,191.8,191.73,21.21105533]
[1738876799464,0.03826397,191.8,191.76,5.2143]
[1738876800866,5.25176397,191.8,191.76,5.2143]
[1738876801365,0.03826397,191.8,191.73,21.21105533]
[1738876801566,0.03826397,191.8,191.76,21.17334004]
[1738876801767,21.40575219,191.88,191.79,21.17334004]
[1738876802164,5.2116,191.87,191.83,5.2124]
[1738876802470,21.40575219,191.88,191.74,3.2222]
[1738876802763,21.40575219,191.89,191.76,21.17334004]
[1738876802970,0.03387537,191.83,191.79,0.03902729]
[1738876804068,5.2132,191.81,191.79,0.03902729]
[1738876804264,0.03387537,191.83,191.79,0.03902729]
[1738876804576,5.2134,191.8,191.79,0.03902729]
[1738876806067,3.0918,191.82,191.79,0.03902729]
[1738876806267,1.5155,191.82,191.79,0.03902729]
[1738876806569,0.03387537,191.83,191.79,0.03902729]
[1738876807366,0.03387537,191.83,191.79,21.21236733]
[1738876807870,0.03387537,191.83,191.82,5.2129]
[1738876810573,0.03387537,191.83,191.8,5.2134]
[1738876810769,0.03387537,191.83,191.79,0.03902729]
[1738876811377,5.2129,191.82,191.79,0.03902729]
[1738876812276,0.03387537,191.83,191.81,5.2131]
[1738876812576,0.03387537,191.83,191.79,0.03902729]
[1738876813474,0.03387537,191.83,191.8,5.2134]
[1738876814375,0.03387537,191.83,191.82,5.2129]
[1738876814774,1.6193,191.91,191.82,21.17334004]
[1738876814974,28.62183426,191.93,191.88,5.211]
[1738876815175,28.62183426,191.93,191.82,21.17334004]
[1738876815471,28.62183426,191.93,191.91,5.2102]
[1738876815680,28.62183426,191.93,191.88,21.17334004]
[1738876816179,7.25487955,191.92,191.89,0.03604136]
[1738876816879,7.25487955,191.92,191.91,5.2105]
[1738876818680,7.25487955,191.92,191.89,0.03604136]
[1738876818681,7.25487955,191.92,191.89,5.24704136]
[1738876818884,7.25487955,191.92,191.89,0.03604136]
[1738876819388,1.5927,192.02,191.95,5.2092]
[1738876819585,1.5927,192.02,191.91,21.17334004]
[1738876819979,4.79617955,192.06,191.97,21.17334004]
[1738876820181,4.79617955,192.06,192.0,21.17334004]
[1738876820483,0.03739399,192.03,192.0,21.21103309]
[1738876820983,0.03739399,192.03,192.02,5.2075]
[1738876821174,0.03739399,192.03,192.0,21.21103309]
[1738876821377,0.03739399,192.03,192.0,0.03769305]
[1738876822184,5.24459399,192.03,192.0,0.03769305]
[1738876822882,0.03739399,192.03,192.0,0.03769305]
[1738876823482,0.03739399,192.03,191.91,21.17334004]
[1738876823785,4.4,192.07,191.91,21.17334004]
[1738876824385,4.4,192.07,191.94,21.17334004]
[1738876824784,0.03963498,192.02,191.99,0.03955794]
[1738876824983,5.2077,192.01,191.99,0.03955794]
[1738876825288,0.03963498,192.02,191.99,0.03955794]
[1738876825486,5.2077,192.01,191.99,0.03955794]
[1738876825686,0.03963498,192.02,191.99,0.03955794]
[1738876825981,5.2091,191.97,191.88,21.17334004]
[1738876826189,3.1302,192.01,191.88,21.17334004]
[1738876826376,3.1302,192.01,191.85,21.17334004]
[1738876826788,21.17334004,191.99,191.84,198.2121]
[1738876827189,5.2112,191.89,191.84,193.0]
[1738876827383,5.2112,191.89,191.81,1.5635]
[1738876827684,0.03924492,191.87,191.85,0.03810945]
[1738876828476,0.03924492,191.87,191.85,5.25020945]
[1738876828887,0.03924492,191.87,191.85,0.03810945]
[1738876829283,0.03924492,191.87,191.85,5.25020945]
[1738876830390,0.03924492,191.87,191.85,0.03810945]
[1738876831784,5.2118,191.86,191.85,0.03810945]
[1738876831985,0.03924492,191.87,191.73,22.69474004]
[1738876832386,21.17334004,191.9,191.79,5.2137]
[1738876832702,21.17334004,191.9,191.76,21.17334004]
[1738876832889,1.597,191.91,191.76,21.17334004]
[1738876833290,0.03952544,191.85,191.81,0.03483799]
[1738876833886,0.03952544,191.85,191.5,21.17334004]
[1738876833887,0.03952544,191.85,191.7,21.17334004]
[1738876834093,5.2142,191.78,191.7,21.17334004]
[1738876834295,21.17334004,191.87,191.7,21.17334004]
[1738876834489,5.2127,191.83,191.73,21.17334004]
[1738876834993,0.03604311,191.8,191.78,5.2138]
[1738876835195,0.03604311,191.8,191.76,0.03639156]
[1738876835695,0.03604311,191.8,191.78,5.2139]
[1738876836299,0.03604311,191.8,191.76,0.03639156]
[1738876836796,5.2153,191.74,191.69,5.2162]
[1738876836992,21.17334004,191.81,191.64,21.17334004]
[1738876837296,21.17334004,191.81,191.67,21.17334004]
[1738876837494,5.2143,191.77,191.67,21.17334004]
[1738876837896,0.03477075,191.74,191.7,0.03885427]
[1738876838595,0.03477075,191.74,191.71,5.2158]
[1738876838901,0.03477075,191.74,191.7,0.03885427]
[1738876839493,5.2159,191.71,191.7,0.03885427]
[1738876839689,0.03477075,191.74,191.64,5.2178]
[1738876839894,1.5889,191.73,191.64,5.2178]
[1738876840202,1.5773,191.72,191.64,5.2178]
[1738876840794,5.2166,191.69,191.64,5.2178]
[1738876840988,0.03373192,191.7,191.66,0.04007094]
[1738876841191,0.03373192,191.7,191.66,5.25727094]
[1738876842300,0.03373192,191.7,191.66,0.04007094]
[1738876843402,0.03373192,191.7,191.55,21.17334004]
[1738876843801,22.75064004,191.72,191.55,21.17334004]
[1738876844303,5.2177,191.65,191.6,5.2187]
[1738876844504,0.03418688,191.65,191.62,0.03702028]
[1738876844901,0.03418688,191.65,191.62,0.03995808]
[1738876846401,5.25178688,191.65,191.62,0.03995808]
[1738876846800,0.03418688,191.65,191.62,0.03995808]
[1738876847502,0.03418688,191.65,191.62,5.25825808]
[1738876847901,5.25178688,191.65,191.62,5.25825808]
[1738876848103,0.03418688,191.65,191.62,0.03995808]
[1738876848504,5.2181,191.64,191.62,0.03995808]
[1738876849704,0.03418688,191.65,191.62,0.03995808]
[1738876850408,0.03418688,191.65,191.64,5.2178]
[1738876852901,1.5773,191.72,191.62,0.03995808]
[1738876853409,1.5773,191.72,191.66,5.217]
[1738876853611,1.5773,191.72,191.61,21.17334004]
[1738876853911,5.2159,191.71,191.61,21.17334004]
[1738876854112,0.03300049,191.68,191.65,0.03528768]
[1738876854313,0.03300049,191.68,191.67,5.2169]
[1738876855613,0.03300049,191.68,191.65,0.03528768]
[1738876856921,0.03300049,191.68,191.65,5.25278768]
[1738876857208,0.03300049,191.68,191.65,0.03528768]
[1738876857407,5.2173,191.66,191.65,0.03528768]
[1738876858408,5.217,191.67,191.65,0.03528768]
[1738876859014,0.03300049,191.68,191.66,5.2172]
[1738876859717,5.24970049,191.68,191.65,5.25278768]
[1738876860213,0.03300049,191.68,191.65,0.03528768]
[1738876860419,0.03300049,191.68,191.61,5.2185]
[1738876860618,22.75064004,191.72,191.54,24.37094004]
[1738876860817,5.218,191.64,191.6,5.2189]
[1738876861018,21.17334004,191.69,191.54,3.1976]
[1738876861219,21.17334004,191.66,191.51,21.17334004]
[1738876861421,5.2192,191.59,191.51,21.17334004]
[1738876861615,0.03360081,191.6,191.57,0.03409949]
[1738876861812,0.03360081,191.6,191.51,21.17334004]
[1738876862013,0.03360081,191.6,191.59,5.2192]
[1738876864026,0.03360081,191.6,191.58,0.03547637]
[1738876864629,0.03360081,191.6,191.58,5.25467637]
[1738876866929,0.03360081,191.6,191.59,5.2192]
[1738876869830,0.03360081,191.6,191.58,0.03547637]
[1738876870933,5.2192,191.59,191.58,0.03547637]
[1738876871433,0.03360081,191.6,191.58,0.03547637]
[1738876872033,0.03360081,191.6,191.59,5.2192]
[1738876872234,0.03360081,191.6,191.58,0.03547637]